bitfinex-derivatives/quotes_BTCF0:USTF0_20241110
["timestamp","ask_amount","ask_price","bid_price","bid_amount"]
[1731228572648,0.00011415,79099.0,79095.0,0.46436]
[1731228574041,0.00011415,79099.0,79096.0,0.05033346]
[1731228575346,0.00011415,79099.0,79095.0,0.56601891]
[1731228575549,0.00011415,79099.0,79095.0,0.56501891]
[1731228576041,0.00011415,79099.0,79096.0,0.03770265]
[1731228576042,0.12282248,79097.0,79096.0,0.03770265]
[1731228576450,0.12282248,79097.0,79095.0,0.001]
[1731228576451,0.12282248,79097.0,79095.0,0.03770265]
[1731228577134,0.12282248,79097.0,79094.0,0.03770265]
[1731228577746,0.12282248,79097.0,79093.0,0.03770265]
[1731228578040,0.12282248,79097.0,79090.0,0.02529426]
[1731228578041,0.12282248,79097.0,79092.0,0.03770265]
[1731228578239,0.12282248,79097.0,79091.0,0.03770265]
[1731228578446,0.12282248,79097.0,79096.0,0.03770265]
[1731228578839,0.12282248,79097.0,79090.0,0.07562772]
[1731228579040,0.36144,79098.0,79090.0,0.07562772]
[1731228579248,0.00011415,79099.0,79095.0,0.05033346]
[1731228579441,0.00011415,79099.0,79096.0,0.1331]
[1731228582446,0.00011415,79099.0,79096.0,0.18441429]
[1731228591850,0.00011415,79099.0,79098.0,0.03772665]
[1731228592258,0.00011415,79099.0,79096.0,0.18441429]
[1731228593364,0.00011415,79099.0,79097.0,0.08056584]
[1731228593566,0.00011415,79099.0,79098.0,0.02529096]
[1731228594964,0.00011415,79099.0,79098.0,0.07562442]
[1731228595870,0.00011415,79099.0,79098.0,0.02529096]
[1731228596057,0.00011415,79099.0,79098.0,0.07562319]
[1731228596858,0.00011415,79099.0,79098.0,0.02529096]
[1731228598060,0.00011415,79099.0,79098.0,0.0756483]
[1731228598361,0.00011415,79099.0,79098.0,0.02529096]
[1731228599267,0.08067999,79099.0,79098.0,0.02529096]
[1731228600370,0.00011415,79099.0,79098.0,0.02529096]
[1731228600672,0.00011415,79099.0,79095.0,0.15156303]
[1731228601058,0.08067999,79099.0,79095.0,0.15156303]
[1731228601261,0.08067999,79099.0,79095.0,0.05024303]
[1731228601563,0.3608,79096.0,79093.0,0.06276393]
[1731228602463,0.3608,79096.0,79092.0,0.16408393]
[1731228603061,0.3608,79096.0,79093.0,0.13150475]
[1731228603368,0.3608,79096.0,79094.0,0.06276393]
[1731228603868,0.3608,79096.0,79093.0,0.06276393]
[1731228604274,0.3608,79096.0,79093.0,0.0427]
[1731228604469,0.3608,79096.0,79093.0,0.0873]
[1731228605460,0.3608,79096.0,79093.0,0.16786584]
[1731228611379,0.00011415,79099.0,79093.0,0.16786584]
[1731228611586,0.3608,79123.0,79098.0,0.16113168]
[1731228611785,0.3608,79123.0,79112.0,0.08056584]
[1731228611986,0.08056584,79117.0,79112.0,0.08056584]
[1731228612177,0.90113168,79113.0,79096.0,0.00189619]
[1731228612374,0.08056584,79097.0,79096.0,0.00189619]
[1731228612680,0.08068257,79097.0,79096.0,0.00189619]
[1731228613382,0.08068257,79097.0,79081.0,0.10132]
[1731228613383,0.16124841,79097.0,79081.0,0.10132]
[1731228613577,0.44136584,79090.0,79081.0,0.10132]
[1731228613783,0.08056584,79083.0,79081.0,0.10132]
[1731228614487,0.08056584,79088.0,79081.0,0.10132]
[1731228615388,0.3608,79083.0,79081.0,0.10132]
[1731228615780,0.3608,79083.0,79081.0,0.15130513]
[1731228616283,0.3608,79083.0,79081.0,0.04998513]
[1731228616478,0.3608,79083.0,79077.0,0.12661426]
[1731228618593,0.3608,79083.0,79079.0,0.08056584]
[1731228618983,0.3608,79083.0,79080.0,0.06296789]
[1731228619583,0.36144,79090.0,79079.0,0.08056584]
[1731228619785,0.3608,79090.0,79083.0,0.08056584]
[1731228620085,0.3608,79090.0,79084.0,0.0909]
[1731228622879,0.3608,79090.0,79087.0,0.08056584]
[1731228623290,0.3608,79090.0,79084.0,0.0909]
[1731228623488,0.3608,79090.0,79077.0,0.02529426]
[1731228623689,0.08056584,79084.0,79078.0,0.10056]
[1731228623990,0.08056584,79084.0,79078.0,0.16348041]
[1731228624204,0.08056584,79084.0,79077.0,0.02529426]
[1731228624205,0.3608,79081.0,79079.0,0.10056]
[1731228624381,0.3608,79081.0,79077.0,0.08821467]
[1731228625293,0.08056584,79084.0,79077.0,0.08821467]
[1731228625482,0.3608,79082.0,79077.0,0.08821467]
[1731228625686,0.3608,79082.0,79077.0,0.02529426]
[1731228627190,0.3608,79082.0,79078.0,0.08056584]
[1731228627389,0.097,79096.0,79078.0,0.26928146]
[1731228627588,0.097,79096.0,79095.0,0.08056584]
[1731228627893,0.00011673,79097.0,79095.0,0.03774285]
[1731228628298,0.00011673,79097.0,79096.0,0.03774285]
[1731228628798,0.08068257,79097.0,79096.0,0.03774285]
[1731228628998,0.12478257,79097.0,79096.0,0.03774285]
[1731228629298,0.12478257,79097.0,79090.0,0.0503238]
[1731228629299,0.16703723,79097.0,79095.0,0.03775036]
[1731228629801,0.42188,79096.0,79093.0,0.03775036]
[1731228629996,0.1228205,79094.0,79089.0,0.03775036]
[1731228630192,0.3608,79090.0,79087.0,0.03775036]
[1731228630393,0.3608,79090.0,79086.0,0.03775036]
[1731228630700,0.3608,79090.0,79087.0,0.03775036]
[1731228631607,0.3608,79090.0,79086.0,0.03775036]
[1731228631897,0.31022599,79090.0,79087.0,0.03775036]
[1731228632995,0.31022599,79090.0,79088.0,0.03775036]
[1731228633790,0.31022599,79090.0,79079.0,0.03775036]
[1731228633996,0.3608,79083.0,79079.0,0.03775036]
[1731228634300,0.3608,79083.0,79078.0,0.03775036]
[1731228634607,0.0424,79082.0,79076.0,0.03775036]
[1731228635202,0.3608,79083.0,79077.0,0.03775036]
[1731228635700,0.097,79091.0,79082.0,0.1228205]
[1731228635900,0.097,79091.0,79088.0,0.03778096]
[1731228636091,0.097,79091.0,79086.0,0.03778096]
[1731228636497,0.097,79091.0,79085.0,0.03778096]
[1731228636694,0.1228205,79090.0,79085.0,0.03778096]
[1731228636896,0.1228205,79090.0,79082.0,0.03778096]
[1731228637709,0.45848,79091.0,79083.0,0.03778096]
[1731228638103,0.45848,79091.0,79084.0,0.03778096]
[1731228638104,0.4578,79091.0,79084.0,0.03778096]
[1731228638603,0.3608,79091.0,79084.0,0.03778096]
[1731228639609,0.3608,79091.0,79086.0,0.03778096]
[1731228640610,0.3608,79091.0,79087.0,0.03778096]
[1731228640805,0.3608,79091.0,79086.0,0.03778096]
[1731228641616,0.3608,79091.0,79087.0,0.03778096]
[1731228641900,0.097,79096.0,79087.0,0.03778096]
[1731228641901,0.097,79096.0,79088.0,0.1228205]
[1731228642104,0.00189683,79101.0,79095.0,0.1228205]
[1731228642614,0.00189683,79101.0,79090.0,0.06292041]
[1731228644202,0.00189683,79101.0,79096.0,0.05034729]
[1731228644909,0.00189683,79101.0,79094.0,0.05034729]
[1731228645110,0.3608,79099.0,79094.0,0.05034729]
[1731228645304,0.3608,79099.0,79093.0,0.05034729]
[1731228646507,0.3608,79099.0,79092.0,0.05034729]
[1731228646703,0.3608,79099.0,79093.0,0.05034729]
[1731228646904,0.1228205,79096.0,79091.0,0.05034729]
[1731228647206,0.1228205,79096.0,79090.0,0.05034729]
[1731228647606,0.1228205,79096.0,79091.0,0.05034729]
[1731228648012,0.3608,79099.0,79092.0,0.05034729]
[1731228648514,0.3608,79099.0,79093.0,0.05034729]
[1731228648914,0.3608,79099.0,79085.0,0.02529512]
[1731228656816,0.3608,79099.0,79093.0,0.05034729]
[1731228658724,0.3608,79099.0,79094.0,0.0429]
[1731228658910,0.3608,79099.0,79094.0,0.0883]
[1731228659111,0.3608,79099.0,79094.0,0.1305]
[1731228659720,0.3608,79099.0,79096.0,0.08057633]
[1731228660424,0.3608,79099.0,79094.0,0.1305]
[1731228660817,0.3608,79099.0,79095.0,0.08057633]
[1731228661315,0.3608,79099.0,79094.0,0.1305]
[1731228663025,0.3608,79099.0,79096.0,0.05037616]
[1731228663216,0.3608,79099.0,79094.0,0.1305]
[1731228666028,0.3608,79099.0,79094.0,0.19342041]
[1731228666515,0.3608,79099.0,79094.0,0.1305]
[1731228667319,0.3608,79099.0,79094.0,0.19342041]
[1731228668321,0.00189683,79101.0,79095.0,0.0689714]
[1731228668520,0.00189683,79101.0,79098.0,0.1435656]
[1731228669313,0.00012067,79100.0,79099.0,0.06298927]
[1731228669517,0.00012067,79100.0,79098.0,0.06298927]
[1731228669727,0.00189683,79101.0,79098.0,0.06298927]
[1731228670525,0.00189683,79101.0,79098.0,0.08057633]
[1731228670717,8.936e-05,79100.0,79098.0,0.1435656]
[1731228672125,8.936e-05,79100.0,79098.0,0.08057633]
[1731228672430,0.3608,79116.0,79099.0,0.76973727]
[1731228672721,0.36144,79116.0,79115.0,0.08057633]
[1731228672922,0.3608,79116.0,79115.0,0.08057633]
[1731228673329,0.3608,79116.0,79104.0,0.08057633]
[1731228673330,0.82057633,79116.0,79101.0,0.03775603]
[1731228673520,0.82057633,79116.0,79100.0,0.0505072]
[1731228673521,0.08057633,79102.0,79100.0,0.0505072]
[1731228673825,0.08057633,79104.0,79094.0,0.02529154]
[1731228673826,0.00015451,79101.0,79094.0,0.02529154]
[1731228674128,0.08057633,79096.0,79094.0,0.02529154]
[1731228675326,0.3608,79099.0,79094.0,0.02529154]
[1731228678920,0.3608,79099.0,79097.0,0.03775603]
[1731228679326,0.3608,79099.0,79098.0,0.03775603]
[1731228679726,0.3608,79099.0,79094.0,0.02529154]
[1731228681424,0.3608,79099.0,79094.0,0.07566138]
[1731228681620,0.00015451,79101.0,79098.0,0.12280187]
[1731228681822,0.00015451,79101.0,79099.0,0.10048]
[1731228682024,0.00015451,79101.0,79099.0,0.15084984]
[1731228682224,0.00015451,79101.0,79100.0,0.046]
[1731228685131,0.00015451,79101.0,79100.0,0.09636172]
[1731228686733,0.00015451,79101.0,79100.0,0.046]
[1731228691133,5.1e-07,79101.0,79100.0,0.4068]
[1731228691334,0.3608,79119.0,79100.0,0.53831603]
[1731228691535,0.3608,79119.0,79111.0,0.03776858]
[1731228692038,0.3608,79119.0,79112.0,0.0444]
[1731228692241,0.00010973,79118.0,79112.0,0.0444]
[1731228693539,0.00010973,79118.0,79112.0,0.08216858]
[1731228693733,0.00010973,79118.0,79113.0,0.03776858]
[1731228694142,0.04808652,79117.0,79112.0,0.0444]
[1731228694343,0.00010973,79118.0,79112.0,0.0444]
[1731228694837,0.00010973,79118.0,79112.0,0.16720187]
[1731228695342,0.00010973,79118.0,79112.0,0.21743168]
[1731228696539,7.3e-07,79118.0,79115.0,0.3608]
[1731228696846,7.3e-07,79118.0,79116.0,0.0439]
[1731228697135,7.3e-07,79118.0,79117.0,0.12280187]
[1731228697341,7.3e-07,79118.0,79117.0,0.31266354]
[1731228699533,7.3e-07,79118.0,79117.0,0.18986167]
[1731228699733,7.3e-07,79118.0,79117.0,0.29034167]
[1731228701344,7.3e-07,79118.0,79117.0,0.18986167]
[1731228701542,7.3e-07,79118.0,79117.0,0.29034167]
[1731228702837,7.3e-07,79118.0,79117.0,0.18986167]
[1731228703047,7.3e-07,79118.0,79117.0,0.29034167]
[1731228704139,7.3e-07,79118.0,79117.0,0.18986167]
[1731228704443,7.3e-07,79118.0,79117.0,0.29030167]
[1731228704943,7.3e-07,79118.0,79117.0,0.18986167]
[1731228705143,7.3e-07,79118.0,79117.0,0.29030167]
[1731228706141,7.3e-07,79118.0,79117.0,0.18986167]
[1731228706341,7.3e-07,79118.0,79117.0,0.10044]
[1731228706543,7.3e-07,79118.0,79116.0,0.0439]
[1731228706737,7.3e-07,79118.0,79117.0,0.10044]
[1731228706933,7.3e-07,79118.0,79116.0,0.0439]
[1731228707138,7.3e-07,79118.0,79117.0,0.41314188]
[1731228707345,7.3e-07,79118.0,79117.0,0.10044]
[1731228707543,7.3e-07,79118.0,79114.0,0.3608]
[1731228712648,7.3e-07,79118.0,79113.0,0.1257256]
[1731228714549,7.3e-07,79118.0,79113.0,0.0252856]
[1731228717351,7.3e-07,79118.0,79114.0,0.03767598]
[1731228717555,7.3e-07,79118.0,79115.0,0.03767598]
[1731228718439,7.3e-07,79118.0,79116.0,0.03767598]
[1731228719447,7.3e-07,79118.0,79113.0,0.0252856]
[1731228719448,0.08054948,79117.0,79113.0,0.0252856]
[1731228719655,0.08054948,79117.0,79116.0,0.03776815]
[1731228720150,0.08054948,79117.0,79113.0,0.0252856]
[1731228720447,0.08054948,79117.0,79113.0,0.07564371]
[1731228721541,7.3e-07,79118.0,79114.0,0.05035811]
[1731228722247,7.3e-07,79118.0,79115.0,0.05035811]
[1731228722644,7.3e-07,79118.0,79116.0,0.13090759]
[1731228722852,7.3e-07,79118.0,79117.0,0.0413]
[1731228723150,7.3e-07,79118.0,79117.0,0.0867]
[1731228723662,7.3e-07,79118.0,79117.0,0.13708418]
[1731228723845,7.3e-07,79118.0,79117.0,0.0867]
[1731228726047,7.3e-07,79121.0,79117.0,0.27679719]
[1731228726351,0.097,79135.0,79120.0,0.12269453]
[1731228726544,0.04882446,79134.0,79121.0,0.1451]
[1731228726741,0.04882446,79133.0,79121.0,0.1451]
[1731228726941,0.04882446,79132.0,79121.0,0.5059]
[1731228727147,0.04891792,79131.0,79121.0,0.5059]
[1731228727343,9.346e-05,79131.0,79121.0,0.5059]
[1731228727742,9.346e-05,79131.0,79121.0,0.3608]
[1731228727743,0.12269453,79123.0,79121.0,0.3608]
[1731228728650,0.12269453,79123.0,79121.0,0.41199487]
[1731228731754,0.12269453,79129.0,79121.0,0.41199487]
[1731228732256,0.12269453,79129.0,79126.0,0.03779057]
[1731228733652,0.12269453,79129.0,79127.0,0.03779057]
[1731228734554,0.12269453,79129.0,79122.0,0.0503848]
[1731228734946,9.346e-05,79131.0,79124.0,0.03780892]
[1731228735152,9.346e-05,79131.0,79125.0,0.0447]
[1731228735350,9.346e-05,79131.0,79125.0,0.0950848]
[1731228736156,9.346e-05,79131.0,79125.0,0.0447]
[1731228738557,0.12269453,79130.0,79126.0,0.03780365]
[1731228738760,0.12269453,79130.0,79125.0,0.03780365]
[1731228739162,0.12269453,79130.0,79124.0,0.03780365]
[1731228739365,0.3608,79125.0,79121.0,0.00694962]
[1731228739556,0.12269453,79123.0,79120.0,0.02528264]
[1731228739858,0.04831221,79122.0,79120.0,0.02528264]
[1731228740056,0.04831221,79121.0,79120.0,0.02528264]
[1731228746264,0.04777909,79121.0,79120.0,0.02528264]
[1731228746458,0.12269453,79123.0,79120.0,0.02528264]
[1731228747269,0.12269453,79123.0,79122.0,0.03780965]
[1731228747761,0.12269453,79123.0,79120.0,0.02528264]
[1731228749553,0.12269453,79123.0,79122.0,0.03781411]
[1731228749962,0.12269453,79123.0,79120.0,0.02528264]
[1731228750166,0.12269453,79123.0,79121.0,0.0503848]
[1731228751368,0.12269453,79123.0,79120.0,0.07566744]
[1731228752166,0.12269453,79123.0,79120.0,0.02528264]
[1731228752370,0.12269453,79123.0,79120.0,0.07566744]
[1731228752570,0.12269453,79123.0,79120.0,0.02528264]
[1731228754764,0.12269453,79123.0,79122.0,0.03781468]
[1731228755269,0.08053747,79123.0,79122.0,0.03781468]
[1731228755662,0.16107494,79123.0,79119.0,0.0503848]
[1731228755862,0.52187494,79123.0,79121.0,0.03781731]
[1731228756061,0.08053747,79122.0,79120.0,0.03781731]
[1731228756262,0.08053747,79121.0,79119.0,0.03781731]
[1731228756565,0.08053747,79121.0,79118.0,0.03781731]
[1731228756776,0.08053747,79121.0,79117.0,0.17483987]
[1731228758359,0.08053747,79121.0,79118.0,0.03781731]
[1731228758766,0.08053747,79121.0,79119.0,0.03781731]
[1731228759170,0.3608,79120.0,79119.0,0.03781731]
[1731228759567,0.3608,79120.0,79118.0,0.03781731]
[1731228761360,0.3608,79120.0,79117.0,0.13702256]
[1731228762867,0.030288,79130.0,79119.0,0.08053747]
[1731228763071,0.030288,79130.0,79127.0,0.3608]
[1731228763661,0.030288,79130.0,79128.0,0.08053747]
[1731228764668,0.030288,79130.0,79128.0,0.14503402]
[1731228765374,0.030288,79130.0,79128.0,0.06449655]
[1731228765671,0.030288,79130.0,79127.0,0.3608]
[1731228765864,0.030288,79130.0,79128.0,0.0452]
[1731228766166,0.030288,79130.0,79129.0,0.12266668]
[1731228767669,0.12266668,79148.0,79129.0,0.12266668]
[1731228768174,4.6e-07,79131.0,79130.0,0.1004]
[1731228768977,0.3608,79150.0,79130.0,0.1004]
[1731228769275,0.3608,79150.0,79139.0,0.12266668]
[1731228769476,0.3608,79150.0,79137.0,0.3608]
[1731228769774,0.3608,79150.0,79138.0,0.0415]
[1731228770174,0.0001449,79139.0,79138.0,0.0415]
[1731228772576,0.0001449,79139.0,79138.0,0.4023]
[1731228772975,9e-07,79139.0,79138.0,0.4023]
[1731228773380,2.5e-07,79140.0,79138.0,0.4023]
[1731228774476,3.4e-07,79139.0,79138.0,0.4023]
[1731228778585,3.4e-07,79139.0,79138.0,0.50262]
[1731228780987,0.3608,79163.0,79138.0,1.09713124]
[1731228781287,0.48346668,79163.0,79154.0,0.3608]
[1731228781479,0.48346668,79163.0,79154.0,0.46112]
[1731228781480,0.12266668,79157.0,79154.0,0.46112]
[1731228781881,0.12266668,79157.0,79154.0,0.3608]
[1731228782180,0.00012013,79156.0,79145.0,0.3608]
[1731228782381,0.00012013,79156.0,79146.0,0.0433]
[1731228782577,0.3608,79147.0,79146.0,0.18989569]
[1731228782778,0.3608,79147.0,79138.0,0.06552838]
[1731228782985,0.12266668,79140.0,79138.0,0.06408838]
[1731228783282,0.0428,79139.0,79138.0,0.06408838]
[1731228783889,0.4036,79139.0,79138.0,0.06219321]
[1731228784074,0.4036,79139.0,79128.0,0.050551]
[1731228784280,0.12266668,79133.0,79128.0,0.050551]
[1731228784483,0.12266668,79133.0,79129.0,0.02527876]
[1731228784789,0.12266668,79135.0,79129.0,0.0064348]
[1731228785590,0.4036,79139.0,79129.0,0.0064348]
[1731228786292,0.3608,79139.0,79129.0,0.0064348]
[1731228788591,0.12266668,79142.0,79129.0,0.0064348]
[1731228788789,0.04847656,79141.0,79129.0,0.0064348]
[1731228789088,0.12266668,79142.0,79129.0,0.0064348]
[1731228789293,0.04839714,79141.0,79129.0,0.0064348]
[1731228789483,0.12266668,79142.0,79129.0,0.0064348]
[1731228789791,0.04841028,79141.0,79129.0,0.0064348]
[1731228790092,0.04841028,79140.0,79129.0,0.0064348]
[1731228790285,0.12266668,79142.0,79129.0,0.0064348]
[1731228790286,0.04836453,79139.0,79129.0,0.0064348]
[1731228790491,0.12266668,79142.0,79129.0,0.0064348]
[1731228790691,0.04844812,79141.0,79130.0,0.18907526]
[1731228790892,0.04844812,79140.0,79130.0,0.18907526]
[1731228791090,0.04844812,79139.0,79130.0,0.18907526]
[1731228791291,0.04851107,79138.0,79131.0,0.12266668]
[1731228791587,0.0417,79149.0,79137.0,0.3608]
[1731228791789,0.0417,79149.0,79138.0,0.22298668]
[1731228791981,0.0417,79149.0,79138.0,0.26898668]
[1731228792585,0.0417,79149.0,79139.0,0.0503848]
[1731228792785,0.36144,79155.0,79139.0,0.23932649]
[1731228792985,0.3608,79155.0,79142.0,0.0503848]
[1731228793187,0.3608,79155.0,79144.0,0.0503848]
[1731228793493,0.3608,79155.0,79140.0,0.0442]
[1731228793494,0.3608,79155.0,79145.0,0.0503848]
[1731228793885,0.0418,79160.0,79145.0,0.0503848]
[1731228794292,0.0418,79160.0,79140.0,0.0442]
[1731228794293,0.0418,79160.0,79144.0,0.0503848]
[1731228795287,0.0418,79160.0,79145.0,0.0503848]
[1731228795494,0.0418,79160.0,79146.0,0.0503848]
[1731228796000,0.0418,79160.0,79145.0,0.0503848]
[1731228796001,0.3608,79155.0,79145.0,0.0503848]
[1731228796186,0.3608,79155.0,79146.0,0.0503848]
[1731228796387,0.3608,79155.0,79145.0,0.0503848]
[1731228798197,0.0418,79160.0,79146.0,0.0503848]
[1731228798502,0.0418,79160.0,79145.0,0.0503848]
[1731228798996,0.0418,79160.0,79146.0,0.0503848]
[1731228799500,0.3608,79157.0,79145.0,0.0503848]
[1731228799686,0.3608,79157.0,79144.0,0.05054078]
[1731228799687,0.04914661,79155.0,79144.0,0.05054078]
[1731228799885,0.04914661,79154.0,79144.0,0.05054078]
[1731228800097,0.04914661,79153.0,79144.0,0.05054078]
[1731228800301,0.04914661,79152.0,79144.0,0.05054078]
[1731228800489,0.04914661,79151.0,79144.0,0.05054078]
[1731228800686,0.04914661,79150.0,79144.0,0.05054078]
[1731228800891,0.04914661,79149.0,79144.0,0.05054078]
[1731228801090,0.48418668,79154.0,79144.0,0.05054078]
[1731228801091,0.04914661,79148.0,79144.0,0.05054078]
[1731228801291,0.04914661,79147.0,79144.0,0.05054078]
[1731228801487,0.48346668,79154.0,79144.0,0.05054078]
[1731228801699,0.04897468,79153.0,79144.0,0.05054078]
[1731228801891,0.04897468,79152.0,79144.0,0.05054078]
[1731228802092,0.48414668,79154.0,79144.0,0.05054078]
[1731228802093,0.04897468,79151.0,79144.0,0.05054078]
[1731228802291,0.48414668,79154.0,79146.0,0.02527699]
[1731228802494,0.12266668,79148.0,79144.0,0.05054078]
[1731228802695,0.0432,79147.0,79144.0,0.05054078]
[1731228804706,0.0432,79147.0,79144.0,0.07581678]
[1731228810303,0.3608,79146.0,79134.0,0.03771684]
[1731228810509,0.12266668,79135.0,79133.0,0.06329368]
[1731228810708,0.0452,79134.0,79125.0,0.3608]
[1731228810898,0.48346668,79129.0,79126.0,0.02527703]
[1731228811304,0.48346668,79129.0,79128.0,0.11450821]
[1731228811608,0.48346668,79129.0,79128.0,0.050551]
[1731228812995,0.86258668,79129.0,79128.0,0.050551]
[1731228816311,0.86258668,79129.0,79115.0,0.10863115]
[1731228816611,0.3608,79119.0,79115.0,0.10863115]
[1731228821108,0.58442668,79129.0,79115.0,0.10863115]
[1731228821415,0.3608,79121.0,79115.0,0.10863115]
[1731228826318,0.3608,79123.0,79115.0,0.10863115]
[1731228826515,0.10028,79131.0,79121.0,0.12266668]
[1731228826716,0.10028,79131.0,79122.0,0.0907]
[1731228828121,0.3608,79133.0,79122.0,0.0907]
[1731228832024,0.3608,79140.0,79128.0,0.3608]
[1731228832214,0.3608,79140.0,79129.0,0.0455]
[1731228834922,0.12266668,79144.0,79129.0,0.0455]
[1731228836025,0.3608,79148.0,79135.0,0.48346668]
[1731228836234,0.3608,79148.0,79136.0,0.0441]
[1731228836432,0.3608,79148.0,79136.0,0.23469135]
[1731228836631,0.3608,79148.0,79137.0,0.0423]
[1731228836842,0.3608,79148.0,79138.0,0.10024]
[1731228837636,0.3608,79148.0,79138.0,0.16266376]
[1731228839537,0.3608,79148.0,79141.0,0.12266668]
[1731228840240,0.3608,79148.0,79139.0,0.03771684]
[1731228841440,0.3608,79148.0,79138.0,0.2003806]
[1731228841735,0.3608,79148.0,79139.0,0.03771684]
[1731228841942,0.3608,79148.0,79138.0,0.2003806]
[1731228842443,0.3608,79148.0,79138.0,0.16266376]
[1731228842635,0.3608,79148.0,79138.0,0.2003806]
[1731228843143,0.3608,79148.0,79138.0,0.16266376]
[1731228843337,0.12266668,79143.0,79138.0,0.06242376]
[1731228843543,0.12266668,79143.0,79137.0,0.0423]
[1731228843936,0.12266668,79143.0,79136.0,0.08181684]
[1731228844140,0.3608,79138.0,79136.0,0.0441]
[1731228844329,0.12266668,79143.0,79136.0,0.0441]
[1731228844836,0.3608,79139.0,79136.0,0.10777446]
[1731228845033,0.3608,79139.0,79136.0,0.0441]
[1731228845239,0.12266668,79143.0,79136.0,0.0441]
[1731228846536,0.3608,79148.0,79136.0,0.0441]
[1731228846739,0.3608,79140.0,79136.0,0.0441]
[1731228847441,0.3608,79148.0,79136.0,0.0441]
[1731228847442,0.12266668,79143.0,79136.0,0.0441]
[1731228848546,0.12266668,79143.0,79134.0,0.02527767]
[1731228849441,0.3608,79148.0,79134.0,0.02527767]
[1731228851441,0.3608,79148.0,79135.0,0.10024]
[1731228852441,0.3608,79148.0,79136.0,0.3608]
[1731228853644,0.3608,79148.0,79138.0,0.12266668]
[1731228854241,9e-07,79145.0,79144.0,0.12266668]
[1731228854746,9e-07,79145.0,79143.0,0.3608]
[1731228855042,9e-07,79145.0,79144.0,0.136]
[1731228857342,0.12266668,79154.0,79144.0,0.0443]
[1731228857546,0.12266668,79154.0,79144.0,0.10676744]
[1731228857747,0.12266668,79154.0,79144.0,0.0443]
[1731228857946,0.12266668,79154.0,79136.0,0.39851684]
[1731228858148,0.12266668,79154.0,79138.0,0.0451]
[1731228858744,0.12266668,79147.0,79136.0,0.42685389]
[1731228858944,0.12266668,79147.0,79136.0,0.06453389]
[1731228859139,0.25816668,79147.0,79135.0,0.12691684]
[1731228860046,0.25816668,79147.0,79135.0,0.08221684]
[1731228860347,0.25816668,79147.0,79135.0,0.14628309]
[1731228862246,0.25816668,79147.0,79135.0,0.10178309]
[1731228863348,0.1355,79147.0,79135.0,0.10178309]
[1731228864946,0.1355,79147.0,79142.0,0.03771684]
[1731228865750,0.1355,79147.0,79141.0,0.03771684]
[1731228866242,0.1355,79147.0,79137.0,0.0503848]
[1731228866243,0.1355,79147.0,79142.0,0.03771684]
[1731228866644,0.1355,79147.0,79141.0,0.03771684]
[1731228866947,0.1355,79147.0,79139.0,0.03771684]
[1731228867148,0.10084983,79146.0,79134.0,0.02527767]
[1731228867454,0.10084983,79145.0,79134.0,0.02527767]
[1731228867654,0.04666712,79144.0,79134.0,0.02527767]
[1731228867855,0.04666712,79143.0,79134.0,0.02527767]
[1731228868047,0.04666712,79142.0,79134.0,0.02527767]
[1731228868248,0.04666712,79141.0,79134.0,0.02527767]
[1731228868447,0.04666712,79140.0,79134.0,0.02527767]
[1731228868644,0.04666712,79139.0,79134.0,0.02527767]
[1731228868847,0.1355,79147.0,79134.0,0.02527767]
[1731228869146,0.0466817,79146.0,79134.0,0.02527767]
[1731228869347,0.08049854,79142.0,79134.0,0.02527767]
[1731228869657,0.0466817,79141.0,79134.0,0.02527767]
[1731228869869,0.08049854,79142.0,79134.0,0.02527767]
[1731228870155,0.0464416,79141.0,79134.0,0.02527767]
[1731228870358,0.08049854,79142.0,79134.0,0.02527767]
[1731228872450,0.08049854,79138.0,79134.0,0.02527767]
[1731228874460,0.08049854,79138.0,79135.0,0.0445]
[1731228875161,0.08049854,79138.0,79135.0,0.0948848]
[1731228876155,0.3608,79139.0,79135.0,0.0948848]
[1731228876364,0.3608,79139.0,79136.0,0.0503848]
[1731228876752,0.3608,79139.0,79135.0,0.0948848]
[1731228876956,0.3608,79139.0,79136.0,0.0503848]
[1731228877959,0.08049854,79142.0,79136.0,0.0503848]
[1731228878159,0.08049854,79142.0,79141.0,0.03778311]
[1731228878357,0.08049854,79142.0,79135.0,0.0445]
[1731228878358,0.08049854,79142.0,79139.0,0.03778311]
[1731228880269,0.08049854,79142.0,79140.0,0.03778311]
[1731228882066,0.08049854,79142.0,79136.0,0.0416]
[1731228884165,0.3608,79140.0,79136.0,0.0416]
[1731228884762,0.08049854,79138.0,79136.0,0.0416]
[1731228885164,0.08049854,79137.0,79135.0,0.06219672]
[1731228885365,0.08049854,79138.0,79128.0,0.3608]
[1731228885366,0.08049854,79136.0,79128.0,0.39858311]
[1731228885566,0.08049854,79129.0,79128.0,0.06264545]
[1731228885774,0.12664307,79129.0,79123.0,0.0902]
[1731228885968,0.08049854,79124.0,79123.0,0.10692088]
[1731228886174,0.08049854,79124.0,79123.0,0.06212088]
[1731228886365,0.08049854,79124.0,79119.0,0.00189561]
[1731228886572,0.08049854,79120.0,79119.0,0.00189561]
[1731228886871,0.08049854,79120.0,79119.0,0.06594414]
[1731228888166,0.16099708,79120.0,79119.0,0.06594414]
[1731228888370,0.08049854,79120.0,79119.0,0.06594414]
[1731228890169,0.08049854,79120.0,79119.0,0.10372725]
[1731228890373,0.08049854,79120.0,79119.0,0.06594414]
[1731228890982,0.44129854,79120.0,79119.0,0.06594414]
[1731228892877,0.3608,79120.0,79119.0,0.06594414]
[1731228893075,0.36148,79128.0,79119.0,0.14454707]
[1731228893379,0.3608,79128.0,79127.0,0.08049854]
[1731228893977,0.3608,79128.0,79126.0,0.0424]
[1731228896779,0.3608,79127.0,79126.0,0.0424]
[1731228903287,0.3608,79127.0,79126.0,0.08013662]
[1731228904278,0.3608,79127.0,79126.0,0.03773662]
[1731228904476,0.48349236,79127.0,79122.0,0.03773937]
[1731228904685,0.3608,79123.0,79117.0,0.03773937]
[1731228904885,0.12269236,79121.0,79116.0,0.03773937]
[1731228905078,0.12269236,79121.0,79115.0,0.112633]
[1731228909999,0.36144,79123.0,79115.0,0.112633]
[1731228910184,0.00076,79127.0,79116.0,0.3608]
[1731228910388,0.3608,79136.0,79116.0,0.3608]
[1731228912093,0.3608,79136.0,79121.0,0.0503848]
[1731228912292,0.3608,79136.0,79126.0,0.03773937]
[1731228912497,0.3608,79136.0,79127.0,0.0436]
[1731228913688,0.3608,79136.0,79128.0,0.03773937]
[1731228914396,0.3608,79136.0,79130.0,0.03773937]
[1731228914590,0.3608,79136.0,79127.0,0.14549429]
[1731228915293,0.3608,79136.0,79131.0,0.03773937]
[1731228916786,0.3608,79136.0,79132.0,0.03773937]
[1731228916987,0.12269236,79133.0,79132.0,0.03773937]
[1731228917397,0.08052531,79133.0,79132.0,0.03773937]